bitfinex/quotes_ETHUSD_20250331
["timestamp","ask_amount","ask_price","bid_price","bid_amount"]
[1743403877440,14.56300313,1806.3,1806.0,5.53689]
[1743403877642,5.53673,1806.2,1805.8,16.46304]
[1743403877852,2.72427313,1806.1,1805.8,5.388]
[1743403878049,6.30335,1806.0,1805.8,5.388]
[1743403878454,8.26167313,1805.9,1805.8,5.388]
[1743403879170,5.53784,1805.8,1805.5,6.365]
[1743403879369,5.53784,1805.8,1805.6,5.389]
[1743403880074,8.26168313,1805.9,1805.6,10.92731]
[1743403880270,8.26168313,1805.9,1805.6,5.389]
[1743403880779,8.26168313,1805.9,1805.6,10.92719]
[1743403881272,13.79925313,1805.9,1805.6,5.389]
[1743403881656,5.5378,1805.8,1805.6,5.389]
[1743403882044,8.26168313,1805.9,1805.6,12.019938]
[1743403882246,2.72427313,1805.9,1805.6,12.019938]
[1743403882445,8.26167313,1805.9,1805.6,17.558148]
[1743403882678,2.72427313,1805.9,1805.6,17.558148]
[1743403883048,5.5362,1806.3,1805.9,5.53722]
[1743403883374,13.79682313,1806.3,1806.0,5.389]
[1743403883677,11.07317,1806.2,1806.0,5.389]
[1743403883847,0.7662,1806.1,1806.0,5.389]
[1743403884179,5.53679,1806.1,1806.0,5.389]
[1743403884868,8.26106313,1806.1,1806.0,5.389]
[1743403885893,2.72427313,1806.1,1806.0,5.389]
[1743403886592,8.26106313,1806.1,1806.0,5.389]
[1743403886755,8.26106313,1806.1,1805.6,5.53827]
[1743403886756,5.53718,1806.0,1805.6,5.53827]
[1743403886948,5.5375,1805.9,1805.7,5.389]
[1743403887357,5.53716,1806.0,1805.7,5.389]
[1743403887685,5.53716,1806.0,1805.7,10.92688]
[1743403888476,11.07442,1806.0,1805.7,10.92688]
[1743403888953,5.53716,1806.0,1805.7,10.92688]
[1743403889580,11.07447,1806.0,1805.7,10.92688]
[1743403889747,11.07447,1806.0,1805.7,5.389]
[1743403889953,11.07455,1806.0,1805.7,5.389]
[1743403890347,5.53716,1806.0,1805.7,5.389]
[1743403890679,5.5375,1805.9,1805.7,5.389]
[1743403891077,6.3344,1805.9,1805.7,5.389]
[1743403891281,5.53811,1805.7,1805.4,37.49888]
[1743403891502,8.26290313,1805.5,1805.4,31.96]
[1743403891684,9.05980313,1805.5,1805.4,37.349]
[1743403892279,9.05980313,1805.5,1805.4,31.96]
[1743403892451,10.51962844,1805.5,1805.4,31.96]
[1743403894780,6.36555,1805.2,1805.1,0.1]
[1743403894947,9.08982313,1805.2,1805.1,5.489]
[1743403895149,6.36555,1805.2,1805.1,5.489]
[1743403896971,5.53894,1805.4,1805.1,11.02885]
[1743403897171,5.53894,1805.4,1805.1,6.672585]
[1743403897349,5.53894,1805.4,1805.1,12.212385]
[1743403897785,5.53894,1805.4,1805.1,6.672585]
[1743403897974,5.53955,1805.2,1805.1,5.489]
[1743403898154,8.26364313,1805.3,1805.1,5.489]
[1743403899768,13.80309313,1805.3,1805.1,5.489]
[1743403899963,8.26364313,1805.3,1805.1,5.489]
[1743403900169,5.53955,1805.2,1805.1,5.489]
[1743403901067,2.72427313,1805.3,1805.1,5.489]
[1743403901268,5.53895,1805.4,1805.1,12.938697]
[1743403901691,11.07806,1805.4,1805.1,12.938697]
[1743403901861,11.07806,1805.4,1805.1,11.83579]
[1743403902059,11.07806,1805.4,1805.1,6.296]
[1743403902258,8.26357313,1805.3,1805.1,5.489]
[1743403903366,3.55027313,1805.5,1805.1,11.02881]
[1743403903598,2.72427313,1805.5,1805.3,6.29461]
[1743403903888,8.26291313,1805.5,1805.3,0.7554]
[1743403904096,8.26291313,1805.5,1805.1,11.02882]
[1743403904302,9.01291313,1805.5,1805.1,11.78422]
[1743403904466,5.53906,1805.4,1805.1,6.2444]
[1743403904667,9.01294313,1805.5,1805.1,11.7841]
[1743403904868,8.26294313,1805.5,1805.2,5.53944]
[1743403905286,5.53894,1805.4,1805.1,11.7841]
[1743403905994,5.53894,1805.4,1805.1,6.2444]
[1743403906576,5.5394,1805.3,1805.2,5.39]
[1743403907392,5.539,1805.4,1805.2,5.39]
[1743403907783,5.5389,1805.5,1805.2,5.39]
[1743403908091,5.53893,1805.4,1805.2,5.39]
[1743403908298,5.53924,1805.3,1805.2,5.39]
[1743403908999,6.28924,1805.3,1805.2,5.39]
[1743403909985,5.53924,1805.3,1805.2,5.39]
[1743403910195,8.26320313,1805.4,1805.2,5.39]
[1743403910376,13.80233313,1805.4,1805.2,5.39]
[1743403910582,5.53924,1805.3,1805.2,5.39]
[1743403918312,11.07871,1805.3,1805.1,0.1]
[1743403918519,9.02682313,1805.2,1805.1,0.1]
[1743403918721,9.02682313,1805.2,1805.1,5.491]
[1743403919218,9.02682313,1805.2,1805.1,0.1]
[1743403919420,10.48342944,1805.2,1805.1,0.1]
[1743403920199,9.02682313,1805.2,1805.1,0.1]
[1743403920913,3.48727313,1805.4,1805.1,5.63963]
[1743403921107,5.53866,1805.5,1805.2,6.31562]
[1743403921535,5.53866,1805.5,1805.2,0.7761]
[1743403921709,5.53914,1805.4,1805.2,0.7761]
[1743403921885,5.53933,1805.3,1805.1,0.1]
[1743403922090,11.0788,1805.3,1805.2,5.391]
[1743403922291,8.26327313,1805.4,1805.2,5.391]
[1743403922615,13.80235313,1805.4,1805.2,5.391]
[1743403922822,5.53924,1805.3,1805.2,5.391]
[1743403924331,5.53924,1805.3,1805.2,5.38303816]
[1743403924539,5.53864,1805.5,1805.2,5.38303816]
[1743403924701,11.07811,1805.4,1805.2,5.38303816]
[1743403925018,8.26326313,1805.4,1805.2,5.38303816]
[1743403925586,13.80236313,1805.4,1805.2,5.38303816]
[1743403925816,8.26326313,1805.4,1805.2,5.38303816]
[1743403925998,13.80236313,1805.4,1805.2,5.38303816]
[1743403926194,8.26326313,1805.4,1805.2,5.38303816]
[1743403926415,17.32448947,1805.6,1805.3,0.8049]
[1743403926617,17.32448947,1805.6,1805.3,6.3441]
[1743403926786,3.01186634,1805.6,1805.4,5.53881]
[1743403927423,11.27463947,1805.6,1805.3,6.34412]
[1743403927611,5.73613947,1805.6,1805.2,5.38303816]
[1743403927917,6.11227395,1805.5,1805.2,10.92242816]
[1743403928214,11.07748,1805.5,1805.2,10.92242816]
[1743403928426,5.53894,1805.4,1805.2,5.38303816]
[1743403928716,14.58033313,1805.4,1805.2,5.38303816]
[1743403928926,9.04111313,1805.4,1805.2,5.38303816]
[1743403929107,9.94522444,1805.4,1805.2,5.38303816]
[1743403929312,5.53924,1805.3,1805.2,5.38303816]
[1743403937097,5.53955,1805.2,1805.1,0.1]
[1743403937398,15.93125,1805.2,1805.1,0.1]
[1743403938230,18.65552313,1805.2,1805.1,0.1]
[1743403938412,21.34742676,1805.2,1805.1,0.1]
[1743403938936,21.77203754,1805.2,1805.1,0.1]
[1743403939605,21.77203754,1805.2,1805.1,0.09617845]
[1743403940227,17.28145363,1805.2,1805.1,0.09617845]
[1743403940442,14.58955,1805.2,1805.1,0.09617845]
[1743403940610,6.05,1805.2,1805.1,0.89177845]
[1743403940800,11.07864,1805.3,1805.1,0.89177845]
[1743403941004,14.07864,1805.3,1805.2,5.391]
[1743403941406,16.80291313,1805.3,1805.2,5.391]
[1743403941615,18.48320444,1805.3,1805.2,5.391]
[1743403941817,19.27490444,1805.3,1805.2,5.391]
[1743403942823,9.33125,1805.2,1805.1,0.09617845]
[1743403944638,8.53955,1805.2,1805.1,0.09617845]
[1743403951857,9.35115,1805.2,1805.1,0.09617845]
[1743403952023,11.71761631,1805.2,1805.1,0.09617845]
[1743403956323,10.90601631,1805.2,1805.1,0.09617845]
[1743403956528,17.95056634,1805.6,1805.2,5.53955]
[1743403956823,11.07745,1805.5,1805.3,0.7897]
[1743403957028,11.07746,1805.5,1805.3,0.7897]
[1743403957552,8.26320313,1805.4,1805.3,0.7897]
[1743403957773,5.53924,1805.3,1805.2,5.391]
[1743403958855,8.26320313,1805.4,1805.2,5.391]
[1743403959031,5.53924,1805.3,1805.2,5.391]
[1743403959228,8.26320313,1805.4,1805.2,5.391]
[1743403959427,4.91605744,1805.4,1805.2,5.391]
[1743403959728,5.53953,1805.3,1805.2,5.391]
[1743403960454,3.8116,1805.2,1805.1,0.09617845]
[1743403960659,12.07542313,1805.2,1805.1,0.09617845]
[1743403961228,11.26382313,1805.2,1805.1,0.09617845]
[1743403962161,3.0,1805.2,1805.1,0.09617845]
[1743403962894,11.26382313,1805.2,1805.1,0.09617845]
[1743403963154,14.36024244,1805.2,1805.1,0.09617845]
[1743403965444,11.63596931,1805.2,1805.1,0.09617845]
[1743403969358,17.68596931,1805.2,1805.1,0.09617845]
[1743403971046,16.87486931,1805.2,1805.1,0.09617845]
[1743403971246,14.58955,1805.2,1805.1,0.09617845]
[1743403971436,9.05,1805.2,1805.1,0.09617845]
[1743403971635,11.58955,1805.2,1805.1,0.09617845]
[1743403971841,11.58955,1805.2,1805.1,5.48717845]
[1743403972868,5.57063946,1805.3,1805.2,0.816]
[1743403973086,7.25403472,1805.3,1805.2,0.816]
[1743403973252,5.53955,1805.2,1805.1,5.48717845]
[1743403973453,8.26382313,1805.2,1805.1,5.48717845]
[1743403973660,12.07492313,1805.2,1805.1,0.09617845]
[1743403974189,14.58955,1805.2,1805.1,0.09617845]
[1743403974343,19.4981816,1805.2,1805.1,0.09617845]
[1743403974968,16.77390847,1805.2,1805.1,0.09617845]
[1743403975162,19.4981816,1805.2,1805.1,0.09617845]
[1743403976146,5.72427313,1805.2,1805.1,0.09617845]
[1743403976692,11.26382313,1805.2,1805.1,0.09617845]
[1743403980292,0.03130946,1805.3,1805.2,6.34175]
[1743403980596,0.03130946,1805.3,1805.2,0.8022]
[1743403980783,0.03130946,1805.3,1805.2,6.34175]
[1743403981723,0.03130946,1805.3,1805.2,0.8022]
[1743403982482,0.03130946,1805.3,1805.2,6.34175]
[1743403982889,0.03130946,1805.3,1805.2,0.8022]
[1743403983095,5.53955,1805.2,1805.1,0.09617845]
[1743403983294,5.53955,1805.2,1805.1,5.48717845]
[1743403984373,5.57054946,1805.3,1805.1,6.28937845]
[1743403984578,0.03130946,1805.3,1805.1,11.82920845]
[1743403985621,5.57062946,1805.3,1805.1,6.28937845]
[1743403985779,0.03130946,1805.3,1805.1,6.28937845]
[1743403986321,0.03130946,1805.3,1805.1,11.82919845]
[1743403987019,0.03130946,1805.3,1805.1,6.28937845]
[1743403987192,0.03130946,1805.3,1805.1,5.48717845]
[1743403987393,5.57066946,1805.3,1805.1,5.48717845]
[1743403987594,11.11009946,1805.3,1805.2,5.391]
[1743403988322,0.03130946,1805.3,1805.2,5.391]
[1743403989482,0.03130946,1805.3,1805.2,12.83544384]
[1743403991221,0.03130946,1805.3,1805.2,27.33544384]
[1743403991388,0.03130946,1805.3,1805.2,27.88544384]
[1743403991782,0.01186634,1805.6,1805.5,5.53863]
[1743403991981,0.01186634,1805.6,1805.5,6.34083]
[1743403992206,0.01186634,1805.6,1805.5,7.29232153]
[1743403994310,0.01186634,1805.6,1805.5,7.84232153]
[1743403994778,0.01186634,1805.6,1805.5,22.34232153]
[1743403998394,0.01186634,1805.6,1805.5,25.34232153]
[1743403998592,9.21e-06,1805.7,1805.6,9.91732]
[1743403998808,9.21e-06,1805.7,1805.6,16.40901384]
[1743403999310,9.21e-06,1805.7,1805.6,30.90901384]
[1743404001523,9.21e-06,1805.7,1805.6,57.48301384]
[1743404001816,9.21e-06,1805.7,1805.6,62.32101384]
[1743404002204,9.21e-06,1805.7,1805.6,62.87101384]
[1743404005911,9.21e-06,1805.7,1805.6,57.48301384]
[1743404006115,9.21e-06,1805.7,1805.6,62.87101384]
[1743404014348,0.00979487,1805.8,1805.7,6.08801]
[1743404014517,0.00979487,1805.8,1805.7,7.03950153]
[1743404015238,0.00979487,1805.8,1805.7,26.37650153]
[1743404015447,0.00979487,1805.8,1805.7,20.98950153]
[1743404015651,0.00979487,1805.8,1805.7,26.37650153]
[1743404017322,0.00979487,1805.8,1805.7,25.42501]
[1743404022110,0.00979487,1805.8,1805.7,26.22831]
[1743404022738,0.00979487,1805.8,1805.7,25.42501]
[1743404025634,0.00979487,1805.8,1805.7,57.38301]
[1743404026412,0.00979487,1805.8,1805.7,58.16481]
[1743404028951,0.00979487,1805.8,1805.7,58.14576573]
[1743404029250,0.7636,1806.1,1806.0,5.53709]
[1743404029454,0.7636,1806.1,1805.9,11.07449]
[1743404030116,0.7636,1806.1,1806.0,5.53709]
[1743404031462,2.72427313,1806.3,1806.0,5.53709]
[1743404031463,0.7557,1806.3,1806.0,5.53709]
[1743404031773,0.7557,1806.3,1806.1,16.46027]
[1743404032966,0.7557,1806.3,1806.2,5.53648]
[1743404033461,0.7557,1806.3,1806.1,10.9236]
[1743404033857,0.7557,1806.3,1806.1,5.387]
[1743404034455,6.29188,1806.3,1806.1,5.387]
[1743404034656,0.7557,1806.3,1806.1,10.92376]
[1743404035044,0.7557,1806.3,1806.1,5.387]
[1743404035246,7.774672,1806.3,1806.2,5.387]
[1743404035471,10.49894513,1806.3,1806.2,5.387]
[1743404036358,5.53658,1806.2,1805.9,5.53738]
[1743404036565,0.7557,1806.1,1805.7,37.49589]
[1743404036780,0.7557,1805.9,1805.8,5.387]
[1743404037737,0.7557,1805.9,1805.8,10.92471]
[1743404038270,0.7557,1805.9,1805.8,5.387]
[1743404039243,0.7557,1805.9,1805.8,10.92471]
[1743404040538,0.7557,1805.9,1805.8,5.387]
[1743404041581,3.47997313,1805.9,1805.7,31.958]
[1743404041873,5.53884,1805.5,1805.1,5.63581845]
[1743404042037,6.2979,1805.4,1805.2,5.387]
[1743404042238,3.48317313,1805.4,1805.2,5.387]
[1743404042463,0.7589,1805.4,1805.2,10.92654]
[1743404043045,6.298,1805.4,1805.2,5.387]
[1743404043248,11.83715,1805.4,1805.2,5.387]
[1743404043463,6.298,1805.4,1805.2,5.387]
[1743404043872,11.83713,1805.4,1805.1,5.63581845]
[1743404044059,7.75401031,1805.4,1805.2,5.387]
[1743404044263,5.53941,1805.3,1805.2,5.387]
[1743404046674,10.47828344,1805.4,1805.2,5.387]
[1743404046851,5.53864,1805.5,1805.2,10.92643]
[1743404047644,11.07744,1805.5,1805.2,5.387]
[1743404047842,0.7589,1805.3,1805.2,5.387]
[1743404049859,5.53895,1805.4,1805.2,5.387]
[1743404050061,6.29754,1805.5,1805.2,10.92644]
[1743404050260,13.29240931,1805.5,1805.2,5.387]
[1743404050974,7.75355931,1805.5,1805.2,10.92651]
[1743404051368,13.29234931,1805.5,1805.2,10.92651]
[1743404051753,0.7589,1805.5,1805.2,10.92644]
[1743404052250,0.7589,1805.5,1805.2,16.46583]
[1743404052679,0.7589,1805.5,1805.3,14.5]
[1743404052851,11.83649,1805.5,1805.3,14.5]
[1743404053347,11.83649,1805.5,1805.2,5.387]
[1743404053787,6.29761,1805.5,1805.3,14.5]
[1743404054662,11.83642,1805.5,1805.3,14.5]
[1743404054960,5.53949,1805.3,1805.1,0.09617845]
[1743404055288,9.03222313,1805.2,1805.1,0.09617845]
[1743404055452,9.03222313,1805.2,1805.1,5.48417845]
[1743404057289,6.30795,1805.2,1805.1,5.48417845]
[1743404059781,12.03222313,1805.2,1805.1,0.09617845]
[1743404059984,14.34447549,1805.2,1805.1,0.09617845]
[1743404064158,5.72427313,1805.2,1805.1,0.09617845]
[1743404064566,3.0,1805.2,1805.1,0.09617845]
[1743404064769,8.53955,1805.2,1805.1,0.09617845]
[1743404064970,3.0,1805.2,1805.1,0.09617845]
[1743404065380,8.53955,1805.2,1805.1,0.09617845]
[1743404065582,13.18897579,1805.2,1805.1,0.09617845]
[1743404065892,10.46470266,1805.2,1805.1,5.48517845]
[1743404070696,3.0,1805.3,1805.1,6.30247845]
[1743404070901,3.0,1805.3,1805.1,17.38184845]
[1743404071088,3.0,1805.3,1805.1,11.84212845]
[1743404071488,3.0,1805.3,1805.1,6.30247845]
[1743404071691,16.80312313,1805.3,1805.1,5.48517845]
[1743404072000,5.53955,1805.2,1805.1,5.48517845]
[1743404073578,5.53955,1805.2,1805.1,5.47229189]
[1743404075465,7.30061031,1805.2,1805.1,5.47129189]
[1743404081683,7.30061031,1805.2,1805.1,0.08329189]
[1743404081884,7.30061031,1805.2,1805.1,5.47129189]
[1743404083412,16.80303313,1805.3,1805.1,5.47129189]
[1743404084323,11.26365313,1805.3,1805.1,5.47129189]
[1743404084612,11.26365313,1805.3,1805.1,6.29689189]
[1743404085115,16.80306313,1805.3,1805.1,6.29689189]
[1743404085410,5.72427313,1805.3,1805.1,6.29689189]
[1743404085616,11.26352313,1805.3,1805.1,6.29689189]
[1743404086608,16.80291313,1805.3,1805.1,6.29689189]
[1743404087222,11.26352313,1805.3,1805.1,6.29689189]
[1743404087913,16.80291313,1805.3,1805.1,6.29689189]
[1743404088085,5.53955,1805.2,1805.1,0.08329189]
[1743404088291,11.26352313,1805.3,1805.1,5.47129189]
[1743404089910,3.0,1805.3,1805.1,5.47129189]
[1743404090109,5.72427313,1805.3,1805.1,5.47129189]
[1743404090306,11.26351313,1805.3,1805.1,5.47129189]
[1743404090506,5.72427313,1805.3,1805.1,5.47129189]
[1743404091418,5.72427313,1805.3,1805.2,0.8256]
[1743404091918,3.0,1805.3,1805.2,6.36515]
[1743404094293,8.26291313,1805.5,1805.2,6.36515]
[1743404094494,3.0,1805.4,1805.2,0.8256]
[1743404094793,3.0,1805.4,1805.2,6.36514]
[1743404095325,3.0,1805.4,1805.2,0.8256]
[1743404096229,3.0,1805.4,1805.2,6.36503]
[1743404096525,9.64304444,1805.5,1805.2,6.36503]
[1743404096526,5.72427313,1805.6,1805.3,11.07822]
[1743404096698,5.72427313,1805.6,1805.3,5.53908]
[1743404097426,11.26269313,1805.6,1805.3,5.53908]
[1743404098597,2.72427313,1805.4,1805.1,6.41105189]
[1743404098798,8.26321313,1805.4,1805.2,5.387]
[1743404099028,9.05156313,1805.4,1805.3,5.387]
[1743404099213,9.05156313,1805.4,1805.1,0.08329189]
[1743404099214,5.53928,1805.3,1805.1,0.08329189]
[1743404099414,5.53928,1805.3,1805.2,5.387]
[1743404099626,9.45021013,1805.3,1805.2,5.387]
[1743404100329,3.91093013,1805.3,1805.2,5.387]
[1743404100632,2.72427313,1805.3,1805.2,5.387]
[1743404103499,6.32729,1805.4,1805.2,5.387]
[1743404103500,2.72427313,1805.5,1805.2,11.68695]
[1743404103707,8.26290313,1805.5,1805.2,11.67529951]
[1743404103921,8.26290313,1805.5,1805.2,11.66550464]
[1743404104428,2.72427313,1805.5,1805.3,5.53921]
[1743404104633,2.72427313,1805.5,1805.3,11.07831]
[1743404104798,5.53809,1805.7,1805.4,5.5388]
[1743404105003,8.26236313,1805.7,1805.5,0.7604]
[1743404105337,11.26236313,1805.7,1805.6,5.387]
[1743404106231,5.72427313,1805.7,1805.6,5.387]
[1743404107244,11.26228313,1805.7,1805.6,5.387]
[1743404108114,5.72427313,1805.7,1805.6,5.387]
[1743404108745,2.72427313,1805.7,1805.6,5.387]
[1743404108942,2.72427313,1805.7,1805.6,10.92532]
[1743404109144,14.31174313,1805.9,1805.6,16.46354]
[1743404109440,14.31174313,1805.9,1805.7,0.7604]
[1743404109944,2.72427313,1805.8,1805.4,5.53884]
[1743404110113,2.72427313,1805.6,1805.5,5.386]
[1743404110544,8.26247313,1805.7,1805.5,5.386]
[1743404111239,8.26247313,1805.7,1805.4,5.53882]
[1743404111434,8.26247313,1805.7,1805.5,5.386]
[1743404111634,5.53832,1805.6,1805.5,5.386]
[1743404111836,9.64267244,1805.6,1805.2,37.51141]
[1743404112131,2.72427313,1805.5,1805.3,10.92522]
[1743404112333,2.72427313,1805.5,1805.3,5.386]
[1743404112629,8.26299313,1805.5,1805.3,5.386]
[1743404112812,2.72427313,1805.5,1805.3,10.92519]
[1743404114245,2.72427313,1805.5,1805.3,5.386]
[1743404114834,2.72427313,1805.5,1805.3,16.46424]
[1743404115035,2.72427313,1805.5,1805.3,10.92512]
[1743404123141,11.07679,1805.6,1805.3,10.92512]
[1743404123667,5.53832,1805.6,1805.3,10.92512]
[1743404123867,5.53832,1805.6,1805.3,25.42512]
[1743404124172,5.53832,1805.6,1805.3,10.92512]
[1743404124570,7.21838731,1805.6,1805.3,10.92512]
[1743404124740,12.75686731,1805.6,1805.3,10.92512]
[1743404124941,7.21838731,1805.6,1805.3,10.92512]
[1743404126572,5.53871,1805.5,1805.3,5.386]
[1743404127072,12.75689731,1805.6,1805.3,5.386]
[1743404127273,7.21844731,1805.6,1805.3,5.386]
[1743404127478,7.21844731,1805.6,1805.3,10.9252]
[1743404128573,5.53838,1805.6,1805.3,10.9252]
[1743404128874,11.26237313,1805.7,1805.3,10.9252]
[1743404128875,16.80063313,1805.7,1805.4,0.8041]
[1743404129275,3.0,1805.7,1805.6,5.53832]
[1743404129575,5.53756,1805.9,1805.6,5.5382]
[1743404129873,5.53756,1805.9,1805.7,5.385]
[1743404130044,2.72427313,1805.8,1805.7,5.385]
[1743404130244,15.55560344,1805.9,1805.7,5.385]
[1743404130468,8.26198313,1805.8,1805.7,5.385]
[1743404132279,2.72427313,1805.8,1805.7,5.385]
[1743404133087,8.26198313,1805.8,1805.7,5.385]
[1743404133288,9.81755847,1805.8,1805.7,5.385]
[1743404135879,5.53833,1805.6,1805.4,0.8041]
[1743404136062,8.26292313,1805.5,1805.2,0.7724]
[1743404136251,13.80176313,1805.5,1805.3,5.384]
[1743404136676,2.72427313,1805.4,1805.3,5.384]
[1743404136990,2.72427313,1805.4,1805.1,11.16287189]
[1743404136991,5.53925,1805.3,1805.1,0.08329189]
[1743404137181,8.26352313,1805.3,1805.2,5.384]
[1743404138080,2.72427313,1805.3,1805.2,5.384]
[1743404138271,9.04365313,1805.4,1805.2,5.384]
[1743404138472,8.26290313,1805.5,1805.2,10.92342]
[1743404138781,8.26290313,1805.5,1805.2,11.69582]
[1743404139582,2.72427313,1805.4,1805.2,11.69582]
[1743404140548,2.72427313,1805.4,1805.2,6.1564]
[1743404140748,8.26331313,1805.4,1805.2,5.384]
[1743404141170,2.72427313,1805.4,1805.2,5.384]
[1743404142271,2.72427313,1805.4,1805.2,10.92354]
[1743404142981,2.72427313,1805.4,1805.3,5.53924]
[1743404143490,2.72427313,1805.4,1805.2,10.92354]
[1743404143895,2.72427313,1805.4,1805.3,5.53924]
[1743404144109,9.31848,1805.7,1805.4,5.53885]
[1743404144313,2.72427313,1805.8,1805.6,5.5382]
[1743404144477,2.72427313,1805.8,1805.7,5.384]
[1743404145066,8.26201313,1805.8,1805.4,6.32728]
[1743404145374,5.53832,1805.6,1805.5,5.384]
[1743404146466,8.26259313,1805.6,1805.5,5.384]
[1743404146671,12.02269313,1805.6,1805.5,5.384]
[1743404146867,6.48437313,1805.6,1805.1,6.41145189]
[1743404147090,8.26329313,1805.4,1805.2,5.383]
[1743404147302,5.53955,1805.2,1805.1,0.08329189]
[1743404147505,2.72427313,1805.2,1805.1,5.46629189]
[1743404148010,8.26382313,1805.2,1805.1,0.08329189]
[1743404148166,8.26382313,1805.2,1805.1,5.46629189]
[1743404148366,2.72427313,1805.2,1805.1,5.46629189]
[1743404148565,2.72427313,1805.3,1805.1,5.46629189]
[1743404148790,3.0,1805.3,1805.1,11.79440189]
[1743404148998,8.26293313,1805.5,1805.2,5.5394]
[1743404149365,2.72427313,1805.4,1805.1,11.79454189]
[1743404149670,2.72427313,1805.4,1805.1,17.33424189]
[1743404150191,2.72427313,1805.4,1805.1,11.79439189]
[1743404151004,8.26321313,1805.4,1805.1,11.79439189]
[1743404151297,2.72427313,1805.4,1805.1,11.79439189]
[1743404151506,5.72427313,1805.5,1805.2,5.53929]
[1743404152073,5.72427313,1805.5,1805.3,5.53912]
[1743404152585,5.72427313,1805.5,1805.2,5.53929]
[1743404152793,5.72427313,1805.5,1805.3,5.53921]
[1743404153103,11.26295313,1805.5,1805.2,5.53929]
[1743404156119,11.26295313,1805.5,1805.1,12.97393108]
[1743404156287,5.53896,1805.4,1805.2,5.383]
[1743404156813,11.26297313,1805.5,1805.2,10.92251]
[1743404156982,11.26297313,1805.5,1805.2,16.46196]
[1743404156983,5.72427313,1805.5,1805.2,16.46196]
[1743404157582,5.72427313,1805.5,1805.2,10.92245]
[1743404158620,11.26292313,1805.5,1805.2,10.92245]
[1743404159815,5.72427313,1805.5,1805.3,5.53919]
[1743404160016,0.82620131,1805.7,1805.3,5.53919]
[1743404160017,3.0,1805.7,1805.4,5.53879]
[1743404160185,8.53803,1805.7,1805.4,5.53879]
[1743404160614,9.01250313,1805.8,1805.5,5.53862]
[1743404160912,16.00540044,1805.8,1805.6,5.383]
[1743404161112,5.53801,1805.7,1805.6,5.383]
[1743404162114,10.46750044,1805.8,1805.6,5.383]
[1743404162322,9.71700044,1805.8,1805.6,5.383]
[1743404162987,5.53801,1805.7,1805.6,5.383]
[1743404163504,7.06351104,1805.7,1805.6,5.383]
[1743404164026,10.06351104,1805.7,1805.6,5.383]
[1743404167526,4.52550104,1805.7,1805.6,5.383]
[1743404167731,3.0,1805.7,1805.6,5.383]
[1743404167928,5.53773,1805.8,1805.6,5.383]
[1743404168318,9.01225313,1805.9,1805.6,5.383]
[1743404168522,14.54994313,1805.9,1805.6,5.383]
[1743404168826,6.75150177,1806.5,1806.0,5.53692]
[1743404168827,0.7505,1806.4,1806.0,5.53692]
[1743404169026,9.07081755,1806.5,1806.1,10.91864]
[1743404169229,3.0,1806.4,1806.1,10.91864]
[1743404169602,8.25994313,1806.5,1806.1,10.91864]
[1743404170228,5.53621,1806.3,1806.1,5.382]
[1743404170601,8.26016313,1806.4,1806.1,5.382]
[1743404170806,13.79629313,1806.4,1806.1,5.382]
[1743404170996,8.26016313,1806.4,1806.1,5.382]
[1743404172628,2.72427313,1806.3,1806.2,5.381]
[1743404172829,8.26075313,1806.3,1806.2,5.381]
[1743404173031,9.64041644,1806.3,1806.2,5.381]
[1743404174029,4.10393644,1806.3,1806.2,5.381]
[1743404174327,8.26015313,1806.4,1806.2,5.381]
[1743404174531,5.53617,1806.3,1806.2,5.381]
[1743404174700,8.26015313,1806.4,1806.2,5.381]
[1743404174907,3.0,1806.4,1806.2,5.381]
[1743404175435,8.53599,1806.4,1806.2,5.381]
[1743404176000,5.53617,1806.3,1806.2,5.381]
[1743404176311,5.5368,1806.1,1805.9,0.8094]
[1743404176510,6.943596,1806.3,1806.0,5.38]
[1743404176708,5.5366,1806.2,1806.0,5.38]
[1743404177430,9.66786913,1806.3,1806.0,5.38]
[1743404177431,12.479926,1806.3,1806.0,5.38]
[1743404177737,15.20419913,1806.3,1806.0,5.38]
[1743404177937,5.53658,1806.2,1806.0,5.38]
[1743404180539,2.72427313,1806.1,1805.7,0.8094]
[1743404180742,13.79885313,1806.0,1805.7,0.8094]
[1743404180941,13.79882313,1806.0,1805.7,0.8094]
[1743404181142,13.79881313,1806.0,1805.8,5.379]
[1743404182130,8.26154313,1806.0,1805.8,5.379]
[1743404182948,5.53727,1806.0,1805.8,5.379]
[1743404183254,13.79822313,1806.1,1805.8,5.379]
[1743404183449,0.8301,1806.3,1805.8,10.9166]
[1743404183650,3.0,1806.1,1805.8,12.089233]
[1743404183849,14.07377,1806.1,1805.8,6.551633]
[1743404184160,8.53679,1806.1,1805.8,6.551633]
[1743404184464,8.53679,1806.1,1805.8,12.089273]
[1743404184826,5.53711,1806.0,1805.8,5.379]
[1743404185359,8.53679,1806.1,1805.8,5.379]
[1743404185544,3.0,1806.1,1805.8,10.91657]
[1743404186370,8.53682,1806.1,1805.8,10.91657]
[1743404186552,8.53682,1806.1,1805.8,5.379]
[1743404187571,3.0,1806.1,1805.8,10.91659]
[1743404188271,9.09015313,1806.5,1806.0,5.53709]
[1743404188426,13.79588313,1806.5,1806.1,6.32725]
[1743404188627,8.26005313,1806.5,1806.2,5.379]
[1743404188929,5.53617,1806.3,1806.2,5.379]
[1743404189572,8.53598,1806.4,1806.2,5.379]
[1743404190181,3.0,1806.4,1806.2,5.379]
[1743404190771,8.53597,1806.4,1806.2,5.379]
[1743404190932,8.53587,1806.4,1806.2,5.379]
[1743404191474,3.0,1806.4,1806.2,5.379]
[1743404191675,3.0,1806.4,1806.2,10.91547]
[1743404191884,3.0,1806.4,1806.2,5.379]
[1743404193367,8.53592,1806.4,1806.2,5.379]
[1743404194471,14.07194,1806.4,1806.1,0.7905]